Cogmind - Beta 15 @@@ ROGUE MODE // 2025.08.27 @ 15:39:53 Player: JuustuToug Result: Destroyed by P-70 Sage with High-powered Shock Rifle Performance ------------- Evolutions (5) 2500 Regions Visited (5) 1000 Robots Destroyed (17) 85 Value Destroyed (710) 710 Prototype IDs (23) 460 Alien Tech Used (0) 0 Bonus (1232) 1232 TOTAL SCORE: 5987 Bonus ------- Follower Combat Kills 432 Registered with UFD 300 Met Optimus in HQ 500 Cogmind --------- Core Integrity 0/1000 Matter 296/300 Energy 98/100 System Corruption 4% Temperature Cool (0) Movement Core (50) Location -5/Factory Parts ------- > --- POWER (1) -------- (None) > --- PROPULSION (5) --- (None) > --- UTILITY (8) ------ Enhanced Optical Array Enhanced Optical Array Advanced Sensor Array > --- WEAPON (3) ------- (None) > --- INVENTORY (5) ---- Cold Fusion Reactor Neutrino Core Hardened Medium Armor Plating Missile Launcher Peak State ------------ > --- POWER ------------ Cold Fusion Reactor > --- PROPULSION ------- Aluminum Leg Overtuned Titanium Leg Antigrav System Antigrav System > --- UTILITY ---------- Scrap Suit Small Storage Unit Advanced Visual Processing Unit IFF Parser Improved Terrain Scanner Surveybot 24 Chip Hardened Medium Armor Plating > --- WEAPON ----------- Tesla Rifle Autogun Thermal Lance > --- INVENTORY -------- Light Nuclear Core Angular Momentum Engine Cold Fusion Reactor Hardened Medium Armor Plating Long-range Tractor Beam Heavy Plasma Cannon Missile Launcher Remote Datajack [Rating: 74] Favorites ----------- Power Subdweller Power Source Engine Subdweller Power Source Power Core Light Nuclear Core Reactor Cold Fusion Reactor Propulsion Aluminum Leg Leg Aluminum Leg Hover Unit Antigrav System Flight Unit Biomechanical Wings Utility Small Storage Unit Device Scrap Suit Storage Small Storage Unit Processor Surveybot 24 Chip Protection Gun Armor Weapon Subdweller Machine Gun Energy Gun Arc Projector Energy Cannon Subdweller Beam Cannon Ballistic Gun Subdweller Machine Gun Launcher Missile Launcher Piercing Weapon Thermal Lance Build | -11 -10 -10 -8 -6 -5 ------- Run | Yrd Mat Sub Scr Fac Fac Slots Evolved 10 | . . . . 8 2 Power . | . . . . . . Propulsion 3 | . . . . 2 1 Utility 6 | . . . . 5 1 Weapon 1 | . . . . 1 . Parts Attached 52 | 6 1 8 13 9 15 Power 10 | 1 . 3 3 3 . Engine 7 | 1 . 3 2 1 . Core 1 | . . . . 1 . Reactor 2 | . . . 1 1 . Propulsion 13 | 2 . . 5 . 6 Treads . | . . . . . . Leg 7 | 2 . . 5 . . Wheel . | . . . . . . Hover 3 | . . . . . 3 Flight 3 | . . . . . 3 Utility 18 | 1 1 1 2 5 8 Device 7 | . 1 . 2 1 3 Storage 1 | 1 . . . . . Processor 6 | . . . . 3 3 Hackware . | . . . . . . Protection 4 | . . 1 . 1 2 Artifact . | . . . . . . Weapon 11 | 2 . 4 3 1 1 Energy Gun 4 | . . 1 2 . 1 Energy Cannon 1 | . . 1 . . . Ballistic Gun 4 | 2 . 2 . . . Ballistic Cannon . | . . . . . . Launcher 1 | . . . . 1 . Special Weapon . | . . . . . . Impact Weapon . | . . . . . . Slashing Weapon . | . . . . . . Piercing Weapon 1 | . . . 1 . . Special Melee Weapon . | . . . . . . Unidentified Prototypes 2 | . . . . 1 1 Parts Lost 17 | . . 1 1 . 15 Power 2 | . . 1 . . 1 Propulsion 9 | . . . 1 . 8 Utility 4 | . . . . . 4 Weapon 2 | . . . . . 2 Highest Loss Streak 8 | . . 1 1 . 8 To Critical Strikes . | . . . . . . Average Backups 6 | 2 4 7 6 5 6 Power 1 | . 1 2 1 1 2 Propulsion . | . 2 2 . . . Utility 1 | . . 1 2 1 1 Weapon 1 | . 1 1 1 1 1 Tool/Special . | . . . . . . Unused Backups 19 | . . 5 10 . 4 Power 6 | . . 1 3 . 2 Propulsion 4 | . . 2 2 . . Utility 5 | . . 1 3 . 1 Weapon 3 | . . 1 2 . . Tool/Special 1 | . . . . . 1 Average Slot Usage (%) 85 | . 91 95 89 76 64 Engine 8 | . 14 11 11 1 . Leg 20 | . 28 23 25 13 7 Device 8 | . 6 1 8 13 13 Storage 6 | . 14 11 4 5 3 Processor 3 | . . . . 11 13 Protection 4 | . . 7 4 4 3 Energy Gun 9 | . . 6 13 6 3 Energy Cannon 3 | . . 6 4 . . Ballistic Gun 14 | . 28 23 15 4 3 Piercing Weapon 1 | . . . . 5 3 Peak Build Rating 74 | 6 7 25 37 54 74 Average Rating 33 | 4 6 18 30 50 51 On Entrance 20 | . 6 7 25 31 54 Naked Turns . | . . . . . . Heaviest Build 48 | 12 14 32 32 40 48 Greatest Support 38 | 20 20 20 38 29 29 Greatest Overweight (x) 1 | . . 1 1 1 1 Average Overweight (x) . | . . . . . . Largest Inventory Capacity 8 | 8 8 8 8 8 8 Average Capacity 6 | 6 8 8 6 7 7 Most Carried 8 | 5 6 8 8 8 8 Average Carried 6 | 3 4 7 6 5 6 Final Capacity 8 | 8 8 8 5 8 5 Final Carried 8 | 4 5 8 5 8 4 Class Distribution -------------------- 38% | Mutant 31% | Gunner 17% | Scavenger-Assassin 5% | Scavenger-Mutant Dominant Class ---------------- Mutant | -10/Materials Gunner | -10/Subcaves Mutant | -8/Scraptown Scavenger-Assassin | -6/Factory Scavenger-Assassin | -5/Factory Resources | -11 -10 -10 -8 -6 -5 ----------- Run | Yrd Mat Sub Scr Fac Fac Matter Collected 1735 | 198 . 273 952 111 201 Remotely . | . . . . . . Salvage Created 948 | . . 93 121 168 566 Parts 39 | . . 11 1 14 13 Haulers Intercepted . | . . . . . . Recyclers Shooed . | . . . . . . Parts Field Recycled . | . . . . . . Retrieved Matter . | . . . . . . Parts Self-Destructed 4 | . . 4 . . . Prevented . | . . . . . . Kills | -11 -10 -10 -8 -6 -5 ------- Run | Yrd Mat Sub Scr Fac Fac Combat Hostiles Destroyed 14 | . . 3 2 5 4 Melee 5 | . . . 2 1 2 Guns 3 | . . 2 . 1 . Cannons 1 | . . 1 . . . AOE 3 | . . . . 3 . Classes Destroyed 9 | . . 1 2 4 2 Builder 1 | . . . . 1 . Recycler 2 | . . . . . 2 Swarmer 3 | . . . . 3 . Sentry 2 | . . . . . 2 Hunter 1 | . . . . 1 . Programmer 3 | . . . . 1 2 Subdweller 3 | . . 3 . . . Guru 1 | . . . 1 . . Thug 1 | . . . 1 . . Best Kill Streak 3 | . . 2 2 3 3 Combat Bots Only 3 | . . 2 2 3 2 Max Kills in Single Turn 2 | . . 1 1 2 1 Gunslinging . | . . . . . . Exploded 2 | . . . . 2 . Melee 1 | . . . 1 1 1 Uniques/NPCs Destroyed . | . . . . . . Combat | -11 -10 -10 -8 -6 -5 -------- Run | Yrd Mat Sub Scr Fac Fac Hostile Shots Fired 350 | . . 25 42 27 256 Missed 150 | . . 5 14 12 119 Hits 200 | . . 20 28 15 137 Melee 1 | . . . . . 1 Projectile 199 | . . 20 28 15 136 Critical Strikes 8 | . . 1 3 . 4 Damage Taken 3434 | . . 446 565 292 2131 Core 1222 | . . 98 91 16 1017 Absorbed by Shields . | . . . . . . Regen/Repaired (Parts) 46 | . . . 26 . 20 Core Remaining (%) 74 | 100 . . 24 98 . Volleys Fired 37 | . 2 22 1 11 1 Largest 4 | . 2 4 1 2 2 Hottest 190 | . 40 190 30 103 88 Shots Fired 77 | . 4 50 1 20 2 Gun 72 | . 4 47 1 18 2 Cannon 3 | . . 3 . . . Launcher 2 | . . . . 2 . Special . | . . . . . . Kinetic 59 | . 4 44 1 9 1 Thermal 15 | . . 6 . 9 . Explosive 2 | . . . . 2 . Electromagnetic 1 | . . . . . 1 Robot Hit Streak 16 | . 1 16 . 8 . Robot Miss Streak 2 | . 2 2 . 2 . Penetration Max . | . . . . . . Secondary Targets . | . . . . . . Shots Hit Robots 66 | . 2 31 2 18 13 Core Hits 23 | . 1 9 1 8 4 Critical Kills 1 | . . . . . 1 Critical Parts Destroyed . | . . . . . . Critical Strikes 2 | . . 1 . . 1 Meltdown 1 | . . . . . 1 Destroy 1 | . . 1 . . . Melee Attacks 30 | . . . 4 6 20 Thermal 30 | . . . 4 6 20 Impact . | . . . . . . Slashing . | . . . . . . Piercing . | . . . . . . Sneak Attacks 3 | . . . . . 3 Combat Hostiles . | . . . . . . Follow-up Attacks . | . . . . . . Damage Inflicted 2456 | . 26 477 164 669 1120 Guns 666 | . 26 421 . 219 . Cannons 56 | . . 56 . . . Explosions 220 | . . . . 220 . Melee 1500 | . . . 150 230 1120 Ramming 14 | . . . 14 . . Kinetic 481 | . 26 368 . 87 . Thermal 1741 | . . 109 150 362 1120 Explosive 220 | . . . . 220 . Electromagnetic . | . . . . . . Impact . | . . . . . . Slashing . | . . . . . . Piercing . | . . . . . . Highest Corruption 4 | . . . . . 4 Average Corruption 3 | . . . . . 3 Corruption Purged . | . . . . . . Corruption Blocked . | . . . . . . Effects 12 | . . . . . 12 Message Errors 5 | . . . . . 5 Matter Fused 1 | . . . . . 1 Heat Flow Errors 1 | . . . . . 1 Energy Discharges 2 | . . . . . 2 Parts Fused 1 | . . . . . 1 Data Loss (minor) 1 | . . . . . 1 Alerts 1 | . . . . . 1 Overload Shots . | . . . . . . Overflow Damage 303 | . . . 31 94 178 Projectiles . | . . . . . . Explosions 14 | . . . . 14 . Melee 289 | . . . 31 80 178 Knockbacks . | . . . . . . Impact . | . . . . . . Kinetic . | . . . . . . Secondary . | . . . . . . Self-Inflicted Damage 46 | . . . . 46 . Shots 1 | . . . . 1 . Rammed . | . . . . . . Targets Rammed 5 | . . . 5 . . Kicked 5 | . . . 5 . . Crushed . | . . . . . . Highest Temperature 420 | . . 167 374 314 420 Average Temperature 114 | . . 92 188 123 82 Received Heat Transfer 536 | . . 9 215 . 312 Effects 4 | . . . 1 . 3 Energy Bleed 1 | . . . 1 . . Interference 3 | . . . . . 3 Siege Activations . | . . . . . . Martial Activations . | . . . . . . Shielding Activations . | . . . . . . Robots Disrupted . | . . . . . . Combat Hostiles . | . . . . . . Robots Corrupted . | . . . . . . Combat Hostiles . | . . . . . . Parts Fried . | . . . . . . Impact Corruptions . | . . . . . . Robots Melted 2 | . . . . . 2 Combat Hostiles 2 | . . . . . 2 Parts Melted 9 | . . . 2 1 6 Heat Transferred 2645 | . . 185 240 660 1560 Parts Sabotaged 2 | . . . . . 2 Parts Stolen . | . . . . . . Parts Stripped . | . . . . . . Power Chain Reactions . | . . . . . . Alert | -11 -10 -10 -8 -6 -5 ------- Run | Yrd Mat Sub Scr Fac Fac Maximum Alert Level 1 | . . . . . 1 Low Security (%) 96 | 100 100 . . 100 92 Level 1 3 | . . . . . 7 Level 2 . | . . . . . . Level 3 . | . . . . . . Level 4 . | . . . . . . Level 5 . | . . . . . . High Security . | . . . . . . Max Security . | . . . . . . Peak Influence 259 | . 5 . . 91 259 Initial . | . . . . . . Average 24 | . . . . 19 33 Influence Increases 708 | . 5 . . 157 546 Destroy 0b10 Robot/C 180 | . . . . 100 80 Destroy 0b10 Robot/NC 15 | . . . . 5 10 Destroy Leader 60 | . . . . 30 30 Successful Hack 5 | . 5 . . . . Destroy Structure 28 | . . . . 22 6 Lose Combat Pursuer 420 | . . . . . 420 Influence Decreases 444 | . 5 . . 157 282 Time Decay 340 | . 5 . . 157 178 Lost Part 104 | . . . . . 104 Squads Dispatched 7 | . 1 . . 2 4 Investigation 1 | . . . . . 1 Extermination 3 | . . . . 1 2 Reinforcement 3 | . 1 . . 1 1 Assault . | . . . . . . Garrison . | . . . . . . Intercept . | . . . . . . Searches Triggered . | . . . . . . Construction Impeded . | . . . . . . Haulers Reinforced . | . . . . . . Active Scanning Responses . | . . . . . . Cargo Convoy Interrupts 1 | . . . . . 1 Stealth | -11 -10 -10 -8 -6 -5 --------- Run | Yrd Mat Sub Scr Fac Fac Distress Signals 1 | . . . . . 1 Communications Jammed . | . . . . . . Distress Signals . | . . . . . . Times Spotted 97 | . 1 4 27 7 58 Peak Tracking Total 21 | . 1 2 5 4 21 Tactical Retreats 8 | . . . . . 8 Traps | -11 -10 -10 -8 -6 -5 ------- Run | Yrd Mat Sub Scr Fac Fac Traps Triggered 2 | . . . . 1 1 Indirectly . | . . . . . . Trap Hack Attempts . | . . . . . . Triggered . | . . . . . . Disarmed . | . . . . . . Reprogrammed . | . . . . . . Reused . | . . . . . . Traps Extracted . | . . . . . . Installed . | . . . . . . Triggered . | . . . . . . Machines | -11 -10 -10 -8 -6 -5 ---------- Run | Yrd Mat Sub Scr Fac Fac Machines Disabled 6 | . . 1 5 . . Max in Single Turn 1 | . . 1 1 . . Machines Repaired . | . . . . . . Machines Dismantled . | . . . . . . Machines Sabotaged . | . . . . . . Overloaded Fab Kills . | . . . . . . Hacking | -11 -10 -10 -8 -6 -5 --------- Run | Yrd Mat Sub Scr Fac Fac Machines Accessed 11 | . 1 1 4 3 2 Terminals 5 | . 1 . . 3 1 Fabricators . | . . . . . . Repair Stations . | . . . . . . Recycling Units 1 | . . . . . 1 Scanalyzers . | . . . . . . Garrison Access . | . . . . . . Total Hacks 34 | . 2 1 23 6 2 Successful 27 | . 1 1 23 2 . Failed 7 | . 1 . . 4 2 Catastrophic 3 | . . . . 1 2 Database Lockouts . | . . . . . . Manual 3 | . . . . 1 2 Terminals 9 | . 2 . . 6 1 Fabricators . | . . . . . . Repair Stations . | . . . . . . Recycling Units 1 | . . . . . 1 Scanalyzers . | . . . . . . Garrison Access . | . . . . . . Terminal Hacks 27 | . 1 1 23 2 . Record 23 | . . . 22 1 . Prototype ID Bank 1 | . 1 . . . . Open DSF 1 | . . . . 1 . Proto ID Catalog 2 | . . 1 1 . . Fabricator Hacks . | . . . . . . Repair Station Hacks . | . . . . . . Recycling Unit Hacks . | . . . . . . Scanalyzer . | . . . . . . Garrison Access Hacks . | . . . . . . Unauthorized Hacks . | . . . . . . Terminals . | . . . . . . Fabricators . | . . . . . . Repair Stations . | . . . . . . Recycling Units . | . . . . . . Scanalyzers . | . . . . . . Garrison Access . | . . . . . . Data Cores Recovered . | . . . . . . Used . | . . . . . . Hacking Detections 5 | . 1 . . 2 2 Full Trace Events . | . . . . . . Feedback Events . | . . . . . . Feedback Blocked . | . . . . . . Robot Schematics Acquired . | . . . . . . Robots Built . | . . . . . . Authchips . | . . . . . . Time . | . . . . . . Total Robot Build Rating . | . . . . . . Part Schematics Acquired . | . . . . . . Parts Built . | . . . . . . Authchips . | . . . . . . Time . | . . . . . . Total Part Build Rating . | . . . . . . Parts Repaired . | . . . . . . Time . | . . . . . . Parts Recycled . | . . . . . . Recycled Matter . | . . . . . . Retrieved Matter . | . . . . . . Retrieved Components . | . . . . . . Parts Scanalyzed . | . . . . . . Part Schematics Acquired . | . . . . . . Parts Damaged . | . . . . . . Bothacking | -11 -10 -10 -8 -6 -5 ------------ Run | Yrd Mat Sub Scr Fac Fac Used RIF Installer . | . . . . . . Robots Hacked . | . . . . . . Non-combat . | . . . . . . Combat . | . . . . . . Robot Hacks Applied . | . . . . . . Relay Couplers Released . | . . . . . . Fabnet Peak Effective % . | . . . . . . Robots Rewired . | . . . . . . Allies Hacked . | . . . . . . Hacks Repelled . | . . . . . . Allies | -11 -10 -10 -8 -6 -5 -------- Run | Yrd Mat Sub Scr Fac Fac Total Allies 5 | . . . 5 . . Largest Group 5 | . . . 5 . . Highest-Rated Group 238 | . . . 238 . . Highest-Rated Ally 50 | . . . 50 . . Total Orders . | . . . . . . Ally Attacks 110 | . . . 110 . . Total Damage 1857 | . . . 1857 . . Kills 14 | . . . 14 . . Allies Corrupted . | . . . . . . Allies Melted 1 | . . . 1 . . Intel | -11 -10 -10 -8 -6 -5 ------- Run | Yrd Mat Sub Scr Fac Fac Active Infowar (turns) 1912 | . 53 152 . 760 947 Optics 1351 | . . . . 404 947 Sensors 37 | . . . . . 37 IFF 686 | . . . . . 686 Terrain 1529 | . . . . 760 769 ECM 218 | . 53 152 . . 13 Robot Analysis Total . | . . . . . . Derelict Logs Recovered 5 | . . . 5 . . Drone Launches . | . . . . . . Drone Recoveries . | . . . . . . Exploration | -11 -10 -10 -8 -6 -5 ------------- Run | Yrd Mat Sub Scr Fac Fac Turns Passed 6060 | 78 106 1134 3035 760 947 Spaces Moved 4196 | 56 56 615 2236 400 833 Core 254 | 7 . . . . 247 Treads . | . . . . . . Legs 3662 | 49 56 615 2236 400 306 Wheels . | . . . . . . Hover . | . . . . . . Flight 280 | . . . . . 280 Fastest Speed 34 | 50 120 120 100 110 34 Average Speed 129 | 111 120 165 127 169 93 Slowest Speed 190 | 120 120 190 190 180 180 Overloaded Moves . | . . . . . . Propulsion Burnouts . | . . . . . . Robots Hopped 7 | . . . . . 7 Potential Cave-ins . | . . . . . . Cave-ins Triggered . | . . . . . . Exploration Rate (%) 28 | 5 10 29 91 14 24 Regions Visited 5 Branch Regions 2 Pre-discovered Areas 5 | . . . 5 . . Known Exits Taken 2 | . . . 1 1 . Unknown Exits Taken 3 | 1 1 1 . . . Scrap Searched 15 | . . 5 10 . . Spaces Dug 4 | . . . . 1 3 Terrain Destroyed 29 | . . 1 . 25 3 Melee 4 | . . . . 1 3 Projectile 1 | . . 1 . . . AOE 24 | . . . . 24 . Terrain Rammed . | . . . . . . Walls Destroyed . | . . . . . . Machines Disabled . | . . . . . . Actions | -11 -10 -10 -8 -6 -5 --------- Run | Yrd Mat Sub Scr Fac Fac Total 4697 | 71 91 689 2424 457 965 Wait 298 | . 31 25 138 20 84 Move 4179 | 55 55 614 2236 399 820 Hop 6 | . . . . . 6 Pick Up 46 | 10 2 10 10 9 5 Fast Attach 15 | . . 2 4 . 9 Attach 22 | 6 1 2 . 6 7 Detach 6 | . . 1 . 1 4 Swap 23 | . . 5 11 5 2 Drop 31 | . . 8 16 . 7 Fire 37 | . 2 22 1 11 1 Melee 30 | . . . 4 6 20 Ram . | . . . . . . Kick 4 | . . . 4 . . Crush . | . . . . . . Escape Stasis . | . . . . . . Rewire . | . . . . . . Trap . | . . . . . . Miscellaneous . | . . . . . . Route ------- -11/Scrapyard -10/Materials -10/Subcaves -8/Scraptown (discovered 2 exits: *Fac x2) -6/Factory (discovered 6 exits: *Fac x4 / Low x2) -5/Factory (discovered 2 exits: [*Fac] / [*Upp]) History --------- Turn | Location | Event 3 | -11/Scrapyard | Discovered new exit (range 15) 79 | -11/Scrapyard | Entered Materials 174 | -10/Materials | Discovered new exit (range 5) 185 | -10/Materials | Entered Subcaves 186 | -10/Subcaves | Approached by a straggling Scientist 274 | -10/Subcaves | Disturbed a concealed Subdweller 305 | -10/Subcaves | Build established: Mutant 524 | -10/Subcaves | Visited 4L-MR0's lab 543 | -10/Subcaves | Found Gun Armor 545 | -10/Subcaves | Attached Gun Armor, gained temporary slots: Weapon x2 755 | -10/Subcaves | Scientist uncovered a shortcut to Scraptown 883 | -10/Subcaves | Build established: Gunner 1037 | -10/Subcaves | Ambushed by Subdwellers from Twisted Machinery 1319 | -10/Subcaves | Entered Scraptown 1437 | -8/Scraptown | Heard Great Nut preacher, LISTEN AND RECITE! 1632 | -8/Scraptown | Discovered new exit (range 5) 1709 | -8/Scraptown | Scanned Subdweller tech in exchange for log data 1712 | -8/Scraptown | Learned Research garrison access intel 1713 | -8/Scraptown | Learned Factory security intel 1714 | -8/Scraptown | Learned Research stockpile data 1715 | -8/Scraptown | Learned location of 2 exits from Factory 1717 | -8/Scraptown | Learned Factory interactive machine intel 1855 | -8/Scraptown | Visited UFD Registry 1855 | -8/Scraptown | Registered with UFD as "Alphaguard" 1942 | -8/Scraptown | Guru changed UFD alias to "Fissionguard" 2042 | -8/Scraptown | Visited TADAMA 2075 | -8/Scraptown | Visited Shadow of the Wyrm 2134 | -8/Scraptown | Visited Fellowship of the Rings 2178 | -8/Scraptown | Visited Awakened 2412 | -8/Scraptown | Visited Science Guys 2463 | -8/Scraptown | Visited Abandonware Association 2476 | -8/Scraptown | Learned abandonware demo "HACKBUD.EXE" 2476 | -8/Scraptown | Learned abandonware demo "MELTYB.EXE" 2506 | -8/Scraptown | Visited Scrapoid Pod Storage 2524 | -8/Scraptown | Found Scrapoid Pod 2671 | -8/Scraptown | Visited Cartography Club 2701 | -8/Scraptown | Found Surveybot 17 Chip 2814 | -8/Scraptown | Build established: Mutant 2868 | -8/Scraptown | Learned location of Storage (-8) 2868 | -8/Scraptown | Learned location of Lower Caves (-7) 2868 | -8/Scraptown | Learned location of Upper Caves (-5) 2868 | -8/Scraptown | Learned location of Archives (-4) 2868 | -8/Scraptown | Learned 12 Materials zone layouts 2868 | -8/Scraptown | Learned 20 Factory zone layouts 2868 | -8/Scraptown | Learned 8 Access zone layouts 2868 | -8/Scraptown | Learned 4 Armory zone layouts 2868 | -8/Scraptown | Learned location of 1 exit from Upper Caves 2868 | -8/Scraptown | Learned location of 3 exits from Upper Caves 2868 | -8/Scraptown | Learned 16 Factory zone layouts 2868 | -8/Scraptown | Identified exit to Factory 2908 | -8/Scraptown | Visited Research Penetration Think Tank 2936 | -8/Scraptown | Visited DA-N13 Charitable Foundation 2941 | -8/Scraptown | Found DCF Scrap (29 items) 3038 | -8/Scraptown | Visited Chapter 10 3087 | -8/Scraptown | Visited Curators Association 3127 | -8/Scraptown | Visited LU-1G1's Boring Crew 3626 | -8/Scraptown | Visited Junk Repository 3676 | -8/Scraptown | Visited Bundlers 3979 | -8/Scraptown | Met Optimus 3979 | -8/Scraptown | Accepted into 0bPrime 4065 | -8/Scraptown | Civil war broke out across Scraptown 4103 | -8/Scraptown | Scrapoid Pod released 08S05-D (x5) 4124 | -8/Scraptown | Found Scrap Suit 4138 | -8/Scraptown | Lost 3 allies 4166 | -8/Scraptown | Found Thermal Lance 4239 | -8/Scraptown | Found Surveybot 24 Chip 4250 | -8/Scraptown | Found MA-1KR's Cyclogen 4314 | -8/Scraptown | Optimus destroyed in the chaos of civil war 4337 | -8/Scraptown | Core integrity fell below 50% 4354 | -8/Scraptown | Entered Factory 4354 | -6/Factory | Evolved 8 slots: Propulsion x2, Utility x5, Weapon x1 4355 | -6/Factory | Identified exit to Factory 4356 | -6/Factory | Identified exit to Lower Caves 4359 | -6/Factory | Loaded intel: 54 interactive machine locations 4384 | -6/Factory | Lost 9 allies 4659 | -6/Factory | Build established: Scavenger-Mutant 5002 | -6/Factory | Build established: Scavenger-Assassin 5114 | -6/Factory | Entered another Factory area 5114 | -5/Factory | Evolved 2 slots: Propulsion x1, Utility x1 5477 | -5/Factory | Discovered new exit (range 15) 5812 | -5/Factory | Lost 4 parts (4n) 5892 | -5/Factory | Spotted B-75 Beast 5893 | -5/Factory | Cargo convoy interrupted 5981 | -5/Factory | Discovered new exit (range 22) 6007 | -5/Factory | Core integrity fell below 50% 6034 | -5/Factory | Core integrity fell below 20% 6061 | -5/Factory | Destroyed by P-70 Sage with High-powered Shock Rifle Last Messages --------------- 06010_ H-66 Slayer suffers critical hit (Destroy). 06010_ Slug penetrates Wall. 06013_ K-01 Serf cleans the Construction Platform. 06023_ Acquired Adv. Sensor Array. 06027_ Acquired 20 matter. 06036_ Biomechanical Wings destroyed. 06038_ U-05 Engineer destroyed. 06038_ K-01 Serf destroyed. 06041_ K-01 Serf cleans the Construction Platform. 06047_ System corrupted: Matter fused (-9). 06052_ ALERT: Hostile activity reported, dispatching reinforcements to area. 06054_ ALERT: Potential suspicious activity detected, Programmers report to Factory Zone 2P. 06058_ Construction Platform disabled. 06060_ Adv. Melee Analysis Suite destroyed. Map ----- +----------------------------------------------------+ | ??????????????? ##### ## """""" # " " " | | ?????????????? ? #####+## """"""" # " " " | | ??????????????########## # """"""" # " " " | | ????????????????######## # """"""" + " " " | | ?????????????########### # #% " " " | | ????????????#####?###### # """"""" # " " " | | ???????????################### """"""" # " " " | | ???????????#?#### # """"""" # | | ???????????###### """"""""" + """"""" # | | ??????????##??### # ######/# | | ??????????#?##### """"""""" # """"""" ###### # | | ?????????######## # """"""" ######/# | | ?????????################+#### """"""" # | | ?????????################ #### """"""" # | | ????????## # % # | | ?????????# # """"""" # | | ?????????# # """ """"""" # | | ?????????# #= """ """"""" # | | ????????## """" """" # """ """"""" # | | ?????????# """" """ # """ # | | ?????????# """" """" # m #####/## | | ?????????# """" """" # x g | | | ????????## """" """" p ^###### % !%* | | ?????????# """" """" # ^###### ! | | ?????????# """" """" # ###### | | ?????????# + @ ###### | | ?????????################/####+###### ######## | | ??????????? ? ?? ? ##### ######## | | ???????????? """ # """ ##### ######## | | ?????????????? """ # ? """"" ##### ######## | | ?????????????????" # """"" ##### ######## | | ???????????????????# ##### ######## | | ?????????????????"?# """ ##### ######## | | ?????????????????" # """"" ##### ##?##### | | ????????????????"" # """"" ##### ###### | | ????????????????? ?# ##### ###### ? | | ???????????????##?#? ##### ###### | | ??????????????###### ##### ###### | | ??????????????##??## ] ##### ######? | | ??????????????#?##################### ###### | | ?????????????#?###?################## ###### | | ??????????????######## # ###### | | ?????????????######### # + | | ?????????????######### + # | | ????????????#?######?#] ! [ # + | | ??????????????? ? # ! # ###### | | ?????????????? ####### !! + ###### | | ?????????????# ###?####################/######## | | ?????????????# #??################ ## | | ?????????????#?################### ! ## | +----------------------------------------------------+ Best States ------------- Heat Dissipation 40 Energy Generation 18 Energy Capacity 300 Matter Stores 300 Matter Capacity 300 Sight Range 22 Robot Scan Range 16 Terrain Scan Range 16 Terrain Scan Density 2010 ECM Strength 1 Armor Coverage 450 Evasion (%) 63 Targeting Accuracy 8 Melee Accuracy 8 Item Schematics ----------------- None Robot Schematics ------------------ None Fabricated ------------ Nothing Repaired ---------- Nothing Alien Tech Used ----------------- None Achievements -------------- None Challenges ------------ None Game ------ Seed BombardmentHybridReplicator Manual? 0 Play Time 00:52:23 Cumulative 82.0 hours Start 2025.08.27 @ 14:46:13 End 2025.08.27 @ 15:39:53 Sessions 1 Manual Loads 0 Difficulty Rogue Special Mode None Game No. 61 Rogue 61 Adventurer 0 Explorer 0 Win Type - Total 2 Types 1/0/0/1/0/0/0/0/0/0 Lore% 62 Gallery% 54 Achievement% 46 Wizard Run 0 Options --------- Layout 1 ASCII 0 Keyboard 0 Movement Mouse Keybinds 0 Fullscreen 1 Font 24/Smallcaps Map View 50x35 Zoom Use 0% Tactical HUD 1 Map Filters NONE Filters NONE Steam 1 RUN: 9c30d5c4-72d0-4aa0-847e-f33bf4186fb2